Cogmind - Beta 10.2 @@@ ROGUE MODE // 2021.10.18 @ 19:21:03 Player: Shifty Result: Destroyed by YI-UF0 with YI-UF0's Doublenader Performance ------------- Evolutions (0) 0 Regions Visited (2) 400 Robots Destroyed (18) 90 Value Destroyed (268) 268 Prototype IDs (0) 0 Alien Tech Used (0) 0 Bonus (0) 0 TOTAL SCORE: 758 Bonus ------- None Cogmind --------- Core Integrity 0/250 Matter 286/300 Energy 93/100 System Corruption 0% Temperature Cool (0) Movement Core (350) Ox6 Location -10/Mines Parts ------- > --- POWER (1) -------- (None) > --- PROPULSION (2) --- (None) > --- UTILITY (2) ------ Large Storage Unit Weapon Shielding > --- WEAPON (2) ------- Light Cannon > --- INVENTORY (10) --- (None) Peak State ------------ > --- POWER ------------ Ion Engine > --- PROPULSION ------- Aluminum Leg Aluminum Leg > --- UTILITY ---------- Large Storage Unit > --- WEAPON ----------- Beam Rifle Assault Rifle > --- INVENTORY -------- Light Ion Engine EM Pulse Gun [Rating: 7] Favorites ----------- Power Light Ion Engine Engine Light Ion Engine Propulsion Aluminum Leg Leg Aluminum Leg Wheel Compact Wheel Utility Large Storage Unit Storage Large Storage Unit Protection Weapon Shielding Weapon Assault Rifle Energy Gun EM Pulse Gun Ballistic Gun Assault Rifle Ballistic Cannon Light Cannon Build | -11 -10 -10 ------- Run | Scr Mat Min Slots Evolved . | . . . Power . | . . . Propulsion . | . . . Utility . | . . . Weapon . | . . . Parts Attached 15 | 5 9 1 Power 3 | 1 2 . Engine 3 | 1 2 . Core . | . . . Reactor . | . . . Propulsion 4 | 2 2 . Treads . | . . . Leg 2 | . 2 . Wheel 2 | 2 . . Hover . | . . . Flight . | . . . Utility 3 | . 3 . Device . | . . . Storage 2 | . 2 . Processor . | . . . Hackware . | . . . Protection 1 | . 1 . Artifact . | . . . Weapon 5 | 2 2 1 Energy Gun 3 | 1 2 . Energy Cannon . | . . . Ballistic Gun 1 | 1 . . Ballistic Cannon 1 | . . 1 Launcher . | . . . Special Weapon . | . . . Impact Weapon . | . . . Slashing Weapon . | . . . Piercing Weapon . | . . . Special Melee Weapon . | . . . Unidentified Prototypes . | . . . Parts Lost 7 | . 2 5 Power 1 | . . 1 Propulsion 3 | . 1 2 Utility . | . . . Weapon 3 | . 1 2 Highest Loss Streak 3 | . 2 3 Average Slot Usage (%) 82 | . 80 91 Engine 13 | . 13 13 Leg 22 | . 21 26 Wheel 3 | . 4 . Storage 12 | . 12 14 Protection 3 | . 1 14 Energy Gun 11 | . 12 11 Ballistic Gun 13 | . 14 11 Naked Turns . | . . . Heaviest Build 26 | 9 26 24 Greatest Support 26 | 26 26 20 Greatest Overweight (x) 5 | . 1 5 Average Overweight (x) . | . . . Largest Inventory Capacity 10 | 4 10 10 Average Capacity 9 | 4 9 10 Most Carried 4 | 3 4 1 Average Carried . | 1 . . Final Capacity 10 | 4 10 10 Final Carried 2 | 2 . . Class Distribution -------------------- 100% | Mutant Dominant Class ---------------- Mutant | -10/Materials Mutant | -10/Mines Resources | -11 -10 -10 ----------- Run | Scr Mat Min Matter Collected 450 | 197 210 43 Remotely . | . . . Salvage Created 407 | . 321 86 Parts 30 | . 22 8 Haulers Intercepted . | . . . Recyclers Shooed . | . . . Parts Field Recycled . | . . . Retrieved Matter . | . . . Parts Self-Destructed . | . . . Prevented . | . . . Kills | -11 -10 -10 ------- Run | Scr Mat Min Combat Hostiles Destroyed 15 | . 9 6 Guns 13 | . 7 6 AOE 2 | . 2 . Classes Destroyed 4 | . 4 . Worker 1 | . 1 . Watcher 2 | . 2 . Swarmer 12 | . 6 6 Grunt 3 | . 3 . Best Kill Streak 6 | . 6 3 Combat Bots Only 4 | . 4 3 Max Kills in Single Turn 2 | . 2 2 Gunslinging 1 | . . 1 Exploded 1 | . 1 . Melee . | . . . Uniques/NPCs Destroyed . | . . . Combat | -11 -10 -10 -------- Run | Scr Mat Min Damage Taken 929 | . 396 533 Core 264 | . 73 191 Absorbed by Shields . | . . . Core Remaining (%) 100 | 100 . . Volleys Fired 48 | . 34 14 Largest 2 | . 2 2 Hottest 76 | . 76 60 Shots Fired 86 | . 62 24 Gun 85 | . 62 23 Cannon 1 | . . 1 Launcher . | . . . Special . | . . . Kinetic 45 | . 34 11 Thermal 6 | . 6 . Explosive . | . . . Electromagnetic 35 | . 22 13 Robot Hit Streak 8 | . 8 4 Robot Miss Streak 6 | . 6 5 Penetration Max . | . . . Secondary Targets 3 | . . 3 Max Gunslinging Chain 1 | . . 1 Shots Hit Robots 48 | . 35 13 Core Hits 22 | . 15 7 Critical Hits . | . . . Critical Kills . | . . . Critical Parts Destroyed . | . . . Melee Attacks . | . . . Impact . | . . . Slashing . | . . . Piercing . | . . . Sneak Attacks . | . . . Combat Hostiles . | . . . Follow-up Attacks . | . . . Damage Inflicted 745 | . 611 134 Guns 626 | . 493 133 Cannons . | . . . Explosions 115 | . 115 . Melee . | . . . Ramming 4 | . 3 1 Kinetic 294 | . 235 59 Thermal 143 | . 143 . Explosive . | . . . Electromagnetic 304 | . 230 74 Impact . | . . . Slashing . | . . . Piercing . | . . . Highest Corruption . | . . . Average Corruption . | . . . Corruption Purged . | . . . Overload Shots . | . . . Overflow Damage . | . . . Projectiles . | . . . Explosions . | . . . Melee . | . . . Knockbacks . | . . . Impact . | . . . Kinetic . | . . . Secondary . | . . . Self-Inflicted Damage 43 | . 43 . Shots 1 | . 1 . Rammed 1 | . . 1 Targets Rammed 2 | . 1 1 Kicked 1 | . 1 . Crushed . | . . . Highest Temperature 51 | . 51 45 Average Temperature 18 | . 16 27 Received Heat Transfer 126 | . 63 63 Siege Activations . | . . . Robots Corrupted . | . . . Combat Hostiles . | . . . Parts Fried . | . . . Impact Corruptions . | . . . Robots Melted . | . . . Combat Hostiles . | . . . Parts Melted . | . . . Heat Transferred 174 | . 174 . Parts Sabotaged . | . . . Parts Stolen . | . . . Parts Stripped . | . . . Power Chain Reactions 2 | . 2 . Missiles Intercepted . | . . . Alert | -11 -10 -10 ------- Run | Scr Mat Min Peak Influence 166 | . 155 166 Initial 11 | . . 11 Average 110 | . 117 96 Maximum Alert Level . | . . . Low Security (%) 100 | 100 100 100 Level 1 . | . . . Level 2 . | . . . Level 3 . | . . . Level 4 . | . . . Level 5 . | . . . High Security . | . . . Max Security . | . . . Squads Dispatched 1 | . 1 . Investigation . | . . . Extermination . | . . . Reinforcement 1 | . 1 . Assault . | . . . Garrison . | . . . Intercept . | . . . Construction Impeded . | . . . Haulers Reinforced . | . . . Stealth | -11 -10 -10 --------- Run | Scr Mat Min Distress Signals 3 | . 3 . Communications Jammed . | . . . Distress Signals . | . . . Times Spotted 32 | . 23 9 Peak Tracking Total 6 | . 6 3 Tactical Retreats 6 | . 5 1 Traps | -11 -10 -10 ------- Run | Scr Mat Min Traps Triggered 2 | . 2 . Indirectly . | . . . Trap Hack Attempts . | . . . Triggered . | . . . Disarmed . | . . . Reprogrammed . | . . . Reused . | . . . Traps Extracted . | . . . Installed . | . . . Triggered . | . . . Machines | -11 -10 -10 ---------- Run | Scr Mat Min Machines Disabled 1 | . . 1 Max in Single Turn 1 | . . 1 Machines Sabotaged . | . . . Garrisons Compromised . | . . . Overloaded Fab Kills . | . . . Fab Network Shutdowns . | . . . Hacking | -11 -10 -10 --------- Run | Scr Mat Min Machines Accessed 2 | . 2 . Terminals 1 | . 1 . Fabricators . | . . . Repair Stations 1 | . 1 . Recycling Units . | . . . Scanalyzers . | . . . Garrison Access . | . . . Total Hacks 4 | . 4 . Successful 3 | . 3 . Failed 1 | . 1 . Catastrophic . | . . . Database Lockouts . | . . . Manual . | . . . Terminals 2 | . 2 . Fabricators . | . . . Repair Stations 2 | . 2 . Recycling Units . | . . . Scanalyzers . | . . . Garrison Access . | . . . Terminal Hacks 1 | . 1 . Record 1 | . 1 . Fabricator Hacks . | . . . Repair Station Hacks 2 | . 2 . Scan Component 1 | . 1 . Repair 1 | . 1 . Recycling Unit Hacks . | . . . Scanalyzer . | . . . Garrison Access Hacks . | . . . Unauthorized Hacks . | . . . Terminals . | . . . Fabricators . | . . . Repair Stations . | . . . Recycling Units . | . . . Scanalyzers . | . . . Garrison Access . | . . . Data Cores Recovered . | . . . Used . | . . . Hacking Detections . | . . . Full Trace Events . | . . . Feedback Events . | . . . Feedback Blocked . | . . . Robot Schematics Acquired . | . . . Robots Built . | . . . Matter . | . . . Time . | . . . Total Robot Build Rating . | . . . Part Schematics Acquired . | . . . Parts Built . | . . . Matter . | . . . Time . | . . . Total Part Build Rating . | . . . Parts Repaired 1 | . 1 . Time 26 | . 26 . Parts Recycled . | . . . Recycled Matter . | . . . Retrieved Matter . | . . . Retrieved Components . | . . . Parts Scanalyzed . | . . . Part Schematics Acquired . | . . . Parts Damaged . | . . . Bothacking | -11 -10 -10 ------------ Run | Scr Mat Min Used RIF Installer . | . . . Robots Hacked . | . . . Non-combat . | . . . Combat . | . . . Robot Hacks Applied . | . . . Relay Couplers Released . | . . . Robots Rewired . | . . . Allies Hacked . | . . . Hacks Repelled . | . . . Allies | -11 -10 -10 -------- Run | Scr Mat Min Total Allies . | . . . Largest Group . | . . . Highest-Rated Group . | . . . Highest-Rated Ally . | . . . Total Orders . | . . . Ally Attacks . | . . . Total Damage . | . . . Kills . | . . . Allies Corrupted . | . . . Allies Melted . | . . . Intel | -11 -10 -10 ------- Run | Scr Mat Min Robot Analysis Total . | . . . Derelict Logs Recovered . | . . . Drone Launches . | . . . Drone Recoveries . | . . . Exploration | -11 -10 -10 ------------- Run | Scr Mat Min Turns Passed 1571 | 44 1238 289 Spaces Moved 1001 | 38 796 167 Core 13 | 9 . 4 Treads . | . . . Legs 744 | . 581 163 Wheels 244 | 29 215 . Hover . | . . . Flight . | . . . Fastest Speed 50 | 50 90 120 Average Speed 136 | 80 136 148 Slowest Speed 300 | 90 150 300 Overloaded Moves . | . . . Propulsion Burnouts . | . . . Robots Hopped . | . . . Cave-ins Triggered . | . . . Exploration Rate (%) 43 | 4 86 41 Regions Visited 2 Branch Regions 1 Pre-discovered Areas . | . . . Known Exits Taken . | . . . Unknown Exits Taken 2 | 1 1 . Scrap Searched . | . . . Spaces Dug . | . . . Terrain Destroyed 6 | . 5 1 Melee . | . . . Projectile 1 | . . 1 AOE 5 | . 5 . Terrain Rammed . | . . . Walls Destroyed . | . . . Machines Disabled . | . . . Actions | -11 -10 -10 --------- Run | Scr Mat Min Total 1123 | 51 888 184 Wait 39 | . 39 . Move 999 | 37 795 167 Hop . | . . . Pick Up 16 | 8 7 1 Fast Attach . | . . . Attach 15 | 5 9 1 Detach 1 | . 1 . Swap . | . . . Drop 3 | 1 2 . Fire 48 | . 34 14 Melee . | . . . Ram . | . . . Kick 2 | . 1 1 Crush . | . . . Escape Stasis . | . . . Rewire . | . . . Trap . | . . . Miscellaneous . | . . . Route ------- -11/Scrapyard -10/Materials (discovered 3 exits: [*Mat x2] / [*Min]) -10/Mines (discovered 1 exit: [*Mat]) History --------- Turn | Location | Event 18 | -11/Scrapyard | Discovered new exit (range 15) 45 | -11/Scrapyard | Entered Materials 280 | -10/Materials | Discovered new exit (range 16) 313 | -10/Materials | Build established: Mutant 627 | -10/Materials | Discovered new exit (range 16) 863 | -10/Materials | Discovered new exit (range 16) 1145 | -10/Materials | Repaired Lgt. Ion Engine 1283 | -10/Materials | Entered Mines 1366 | -10/Mines | Discovered new exit (range 9) 1516 | -10/Mines | Core integrity fell below 50% 1569 | -10/Mines | Core integrity fell below 20% 1572 | -10/Mines | Destroyed by YI-UF0 with YI-UF0's Doublenader Last Messages --------------- EM Pulse Gun destroyed. K-01 Serf collects debris. Y-45 Defender destroyed. U-05 Engineer lays Concrete. The unstable cave ceiling collapses. U-05 Engineer lays Concrete. Aluminum Leg destroyed. Lgt. Ion Engine destroyed. Aluminum Leg destroyed. The unstable cave ceiling collapses. YI-UF0: "BAROOM!" U-05 Engineer destroyed. The unstable cave ceiling collapses. YI-UF0: "BAROOM!" K-01 Serf destroyed. K-01 Serf collects debris. Acquired Lgt. Cannon. K-01 Serf collects debris. YI-UF0 mumbles something. The unstable cave ceiling collapses. Map ----- +----------------------------------------------------+ | ???????????????????????????????# #????# # | | ???????????????????????????????# ##????## # | | ???????????????????????????????# ##???????## # | | ??????????????????????????????## ##??????### # | | ?????????????????????????????## #####?# | | ?????????????????????????##### ## | | ?????????????????????? | | ?????????????????????# | | ?????????????????????# ###### | | ????????????????????????????# | | ????????????????????????????## ## | | ?????????????????????????????## #### | | ??????????????????????????????## ###??## | | ???????????????????????????????###??????# | | ????????????????????????????????????????# ### | | ???????????????????????????###??????????# ??? | | ???????????????????????????# ######????# ???? | | ?????????????????????????### #### #????? | | ?????????????????????????? # ?????? | | ?????????????????????????## # # # #?????? | | ???????????????????????### # g #?????? | | ?????????????????????### !! #?????? | | ????????????????????## [ ########? | | ????????????????????# ## | | ????????????????????# #############? | | ?????????????????????# @ ##??????????? | | ?????????????????????# ! ##?????????? | | ????????????????????# % #?????????? | | ????????????????????## #?????????? | | ?????????????????????##### ## #????????? | | ??????????????????????????## k###?# #????????? | | ????????????????????????????### #???###????????? | | ??????????????????????????????# $##??????????????? | | ????????????????# ####### #???????????????? | | ???????????????? #???????????????? | | ???????????????????????###### ####???????????????? | | ????????????????????????????# ???????????????????? | | ????????????????????????????#????????????????????? | | ?????????????????????????????????????????????????? | | ?????????????????????????????????????????????????? | | ?????????????????????????????????????????????????? | | ?????????????????????????????????????????????????? | | ?????????????????????????????????????????????????? | | ?????????????????????????????????????????????????? | | ?????????????????????????????????????????????????? | | ?????????????????????????????????????????????????? | | ?????????????????????????????????????????????????? | | ?????????????????????????????????????????????????? | | ?????????????????????????????????????????????????? | | ?????????????????????????????????????????????????? | +----------------------------------------------------+ Best States ------------- Heat Dissipation 25 Energy Generation 10 Energy Capacity 250 Matter Stores 300 Matter Capacity 300 Sight Range 16 Terrain Scan Density 10 Weapon Shielding 33 Evasion (%) 42 Item Schematics ----------------- None Robot Schematics ------------------ None Fabricated ------------ Nothing Alien Tech Used ----------------- None Achievements -------------- Storm Trooper Challenges ------------ None Game ------ Seed LightningAerolevWeb Manual? 0 Play Time 00:22:27 Cumulative 1.8 hours Start 2021.10.18 @ 18:39:35 End 2021.10.18 @ 19:21:03 Sessions 1 Manual Loads 0 Difficulty Rogue Special Mode None Game No. 4 Rogue 2 Adventurer 2 Explorer 0 Win Type - Total 0 Types 0/0/0/0/0/0/0/0/0 Lore% 1 Gallery% 4 Achievement% 1 Wizard Run 0 Options --------- ASCII 0 Keyboard 0 Movement Numpad Keybinds 0 Fullscreen 1 Font 18/SmallcapsGlow Map View 76x50 Tactical HUD 0 Map Filters NONE Filters NONE Steam 1 RUN: 21bf45f9-9d97-44a8-bf47-af5a30b6f626